bitfinex-derivatives/quotes_SOLF0:USTF0_20250321
["timestamp","ask_amount","ask_price","bid_price","bid_amount"]
[1742585947248,5.42066352,128.0,127.99,0.0513439]
[1742585947954,13.23686352,128.0,127.99,0.0513439]
[1742585948155,24.60001239,128.0,127.99,0.0513439]
[1742585948861,24.59940751,128.0,127.99,0.0513439]
[1742585949346,24.59940751,128.0,127.96,7.8184]
[1742585949347,16.78320751,128.0,127.96,7.8184]
[1742585949546,11.36314887,127.98,127.93,11.36314887]
[1742585949753,5.42005864,127.97,127.95,7.819]
[1742585949953,16.78320751,127.96,127.88,45.8263]
[1742585950152,46.96320751,127.95,127.9,11.36314887]
[1742585950354,19.18364887,127.93,127.88,11.36314887]
[1742585950552,19.18364887,127.93,127.91,0.05868793]
[1742585950553,5.42005864,127.92,127.91,0.05868793]
[1742585950954,5.42005864,127.92,127.91,7.88038793]
[1742585952662,4.2415,127.97,127.91,7.88038793]
[1742585952663,11.36314887,128.02,127.91,49.4218368]
[1742585952858,41.54314887,128.03,127.98,11.36314887]
[1742585953059,7.8151,128.02,127.99,7.8162]
[1742585953761,19.23771605,128.02,127.99,7.86843392]
[1742585953955,11.36314887,128.01,127.99,7.86843392]
[1742585954864,19.17884887,128.01,127.99,0.05223392]
[1742585955263,30.18,128.0,127.99,0.05223392]
[1742585955766,30.18,128.0,127.99,7.86893392]
[1742585956465,30.18,128.0,127.79,129.36636689]
[1742585956466,38.0,128.0,127.82,257.86]
[1742585956664,11.36314887,127.91,127.85,11.36314887]
[1742585956862,30.18,127.9,127.85,11.36314887]
[1742585957166,30.18,127.9,127.85,19.18804887]
[1742585957558,0.0542629,127.89,127.85,19.18804887]
[1742585957860,0.0542629,127.89,127.86,0.0588874]
[1742585958065,4.09118178,127.88,127.86,0.0588874]
[1742585958266,0.0542629,127.89,127.86,0.0588874]
[1742585959571,4.08229705,127.88,127.86,0.0588874]
[1742585960062,0.0542629,127.89,127.86,0.0588874]
[1742585960563,4.07809357,127.88,127.86,0.0588874]
[1742585960865,30.18,127.87,127.86,0.0588874]
[1742585961367,38.0041,127.87,127.86,0.0588874]
[1742585962071,30.18,127.87,127.86,0.0588874]
[1742585963168,38.0041,127.87,127.86,0.0588874]
[1742585963867,7.8258,127.85,127.81,7.8276]
[1742585964261,7.8258,127.85,127.8,19.90736201]
[1742585964262,30.2,127.84,127.8,2.0706]
[1742585964462,7.8266,127.83,127.8,2.0706]
[1742585964664,7.8266,127.83,127.78,2.1213]
[1742585964864,7.8275,127.82,127.78,9.9507]
[1742585965060,7.88064654,127.82,127.78,9.9507]
[1742585965371,7.88064654,127.82,127.78,2.1213]
[1742585965669,7.88064654,127.82,127.77,257.86]
[1742585965871,30.2,127.81,127.77,257.86]
[1742585966170,30.2,127.81,127.79,7.8288]
[1742585968572,30.2,127.81,127.8,7.8284]
[1742585968974,30.2,127.81,127.78,17.83676201]
[1742585969179,30.2,127.81,127.77,257.86]
[1742585969682,38.0278,127.81,127.77,257.86]
[1742585970164,30.2,127.81,127.78,7.8296]
[1742585971774,38.0279,127.81,127.78,7.8296]
[1742585972477,30.2,127.81,127.79,7.8289]
[1742585972677,30.2,127.81,127.77,257.86]
[1742585972876,38.0281,127.81,127.77,257.86]
[1742585973077,30.2,127.81,127.77,257.86]
[1742585973277,30.2,127.81,127.78,17.83676201]
[1742585973578,0.05314654,127.82,127.78,17.83676201]
[1742585973975,0.05314654,127.82,127.8,7.8281]
[1742585974773,0.05314654,127.82,127.77,257.86]
[1742585975176,7.8278,127.81,127.77,257.86]
[1742585975478,0.05314654,127.82,127.77,257.86]
[1742585975878,0.05314654,127.82,127.78,17.83676201]
[1742585978073,0.05314654,127.82,127.8,7.8283]
[1742585979184,0.05314654,127.82,127.78,17.83676201]
[1742585979683,0.05314654,127.82,127.81,7.8278]
[1742585982085,4.10268973,127.82,127.81,7.8278]
[1742585987889,10.60183597,127.82,127.81,7.8278]
[1742585988090,10.60183597,127.82,127.8,7.8281]
[1742585988591,10.60183597,127.82,127.79,7.8287]
[1742585988985,10.54868943,127.81,127.79,11.42650141]
[1742585989180,10.54868943,127.81,127.8,11.42650141]
[1742585989391,5.31092375,127.81,127.8,11.42650141]
[1742585989889,9.38016894,127.81,127.8,11.42650141]
[1742585990393,15.89096125,127.81,127.8,11.42650141]
[1742585990598,15.89096125,127.81,127.8,19.25490141]
[1742585991590,9.38016894,127.81,127.8,19.25490141]
[1742585992288,43.33174709,127.87,127.8,19.24650141]
[1742585992488,43.33174709,127.87,127.85,11.42650141]
[1742585992691,43.33174709,127.87,127.86,19.25130141]
[1742585993088,153.872328,127.87,127.86,7.8248]
[1742585995494,165.29882941,127.87,127.85,0.05500036]
[1742585995893,11.42650141,127.86,127.85,0.05500036]
[1742585996493,11.42650141,127.86,127.85,7.88040036]
[1742585996694,11.42650141,127.87,127.85,0.05500036]
[1742585996895,63.79881303,127.88,127.85,0.05500036]
[1742585997098,52.37231162,127.88,127.85,0.05500036]
[1742585997791,41.09165814,127.88,127.85,0.05500036]
[1742585997991,41.09165814,127.88,127.86,7.8242]
[1742585998199,41.09165814,127.88,127.85,0.05500036]
[1742585999601,30.22995142,127.88,127.85,0.05500036]
[1742586000189,11.42650141,127.86,127.85,0.05500036]
[1742586000501,19.25130141,127.86,127.85,0.05500036]
[1742586000701,19.25130141,127.86,127.8,41.60650141]
[1742586000891,11.42650141,127.85,127.81,11.42650141]
[1742586001092,19.25130141,127.86,127.81,11.42650141]
[1742586001399,19.25130141,127.86,127.83,7.8263]
[1742586001988,11.47857974,127.86,127.8,30.18]
[1742586002194,11.47857974,127.86,127.81,11.42650141]
[1742586003298,19.30377974,127.86,127.83,7.8263]
[1742586003489,11.47857974,127.86,127.83,7.8263]
[1742586003695,7.8255,127.85,127.83,7.8263]
[1742586003896,7.8255,127.85,127.79,43.65730141]
[1742586003897,11.42650141,127.84,127.79,43.65730141]
[1742586004096,30.18,127.85,127.78,2.1244]
[1742586004097,11.42650141,127.82,127.78,2.1244]
[1742586004403,5.30321788,127.81,127.79,7.8286]
[1742586004598,5.30321788,127.8,127.79,7.8286]
[1742586004804,20.64626108,127.8,127.75,11.42650141]
[1742586005103,50.82626108,127.79,127.74,15.60470141]
[1742586005301,5.30321788,127.78,127.77,7.8303]
[1742586005501,9.21975967,127.78,127.77,7.8303]
[1742586006104,9.21975967,127.78,127.77,19.25680141]
[1742586006305,9.21975967,127.78,127.77,7.8303]
[1742586006502,9.22319385,127.78,127.76,41.60650141]
[1742586006704,9.22319385,127.77,127.75,11.42650141]
[1742586006902,3.91654179,127.77,127.76,11.42650141]
[1742586007202,0.63734179,127.77,127.76,7.8309]
[1742586007409,0.05611925,127.79,127.75,17.86179868]
[1742586007602,0.05611925,127.79,127.78,7.8297]
[1742586016115,0.05611925,127.79,127.76,30.18]
[1742586016611,7.88541925,127.79,127.77,7.83]
[1742586017507,7.88541925,127.79,127.76,7.8306]
[1742586017703,7.88541925,127.79,127.73,2.1204]
[1742586017704,0.05611925,127.79,127.73,2.1204]
[1742586017908,0.05611925,127.79,127.72,280.20279868]
[1742586018115,7.8303,127.77,127.75,7.8312]
[1742586018316,0.05611925,127.79,127.75,7.8312]
[1742586018617,0.05611925,127.79,127.73,30.18]
[1742586018818,7.8302,127.78,127.75,7.8312]
[1742586019705,0.05611925,127.79,127.74,7.8318]
[1742586019905,2.0766,127.79,127.74,7.8318]
[1742586020114,0.04944659,127.78,127.72,288.36]
[1742586020909,7.8311,127.76,127.74,7.8319]
[1742586021214,30.18,127.77,127.72,288.36]
[1742586021716,0.05621691,127.76,127.74,7.8318]
[1742586021904,0.05621691,127.76,127.72,288.36]
[1742586022111,0.05621691,127.76,127.75,25.69329868]
[1742586022713,0.05621691,127.76,127.75,55.85329868]
[1742586025221,1.691e-05,127.76,127.75,55.85329868]
[1742586025423,32.2662,127.82,127.8,7.8283]
[1742586026824,32.32432915,127.82,127.8,0.05621691]
[1742586027420,32.32432915,127.82,127.8,7.88451691]
[1742586027620,32.32432915,127.82,127.8,0.05621691]
[1742586028018,40.15182915,127.82,127.8,0.05621691]
[1742586028623,40.15182915,127.82,127.8,7.88461691]
[1742586029617,40.15182915,127.82,127.8,0.05621691]
[1742586030220,40.15182915,127.82,127.8,7.88441691]
[1742586030524,40.15182915,127.82,127.8,0.05621691]
[1742586030722,7.8278,127.81,127.8,0.05621691]
[1742586031318,19.26018772,127.81,127.8,0.05621691]
[1742586033816,19.26018772,127.81,127.75,11.43238772]
[1742586034024,19.26118772,127.8,127.78,7.8294]
[1742586034420,19.26118772,127.8,127.75,11.43238772]
[1742586034618,30.16,127.79,127.66,274.15132076]
[1742586034823,11.43238772,127.77,127.72,11.43238772]
[1742586035126,0.05827569,127.75,127.73,19.26478772]
[1742586035321,0.05827569,127.75,127.73,11.43238772]
[1742586035520,5.41939478,127.74,127.73,11.43238772]
[1742586036321,5.41939478,127.74,127.72,7.8331]
[1742586036518,0.05827569,127.75,127.72,11.43238772]
[1742586036725,5.41857385,127.74,127.68,1.36240849]
[1742586037028,5.41857385,127.73,127.7,11.43238772]
[1742586037231,5.47694176,127.72,127.71,11.43238772]
[1742586037428,0.05836791,127.72,127.71,11.43238772]
[1742586037634,5.47704455,127.72,127.7,11.43238772]
[1742586037819,0.05836791,127.72,127.7,11.43238772]
[1742586039524,5.4198394,127.71,127.7,11.43238772]
[1742586040232,5.4198394,127.71,127.68,11.43238772]
[1742586040433,5.42054171,127.7,127.67,11.43238772]
[1742586040618,5.42054171,127.69,127.67,11.43238772]
[1742586040823,30.16,127.72,127.68,11.43238772]
[1742586041029,0.05504135,127.69,127.68,11.43238772]
[1742586041231,5.47404277,127.69,127.68,11.43238772]
[1742586041622,5.47404277,127.69,127.68,19.26818772]
[1742586042927,0.05504135,127.69,127.68,19.26818772]
[1742586043122,0.05504135,127.69,127.66,288.46]
[1742586043123,47.06447172,127.69,127.63,1.36291539]
[1742586043429,5.41704265,127.68,127.64,11.43238772]
[1742586043633,5.41704265,127.67,127.64,11.43238772]
[1742586043823,0.05803544,127.67,127.64,11.43238772]
[1742586044019,5.41685025,127.66,127.64,11.43238772]
[1742586044331,0.05803544,127.67,127.64,11.43238772]
[1742586044531,5.41508483,127.66,127.63,11.43238772]
[1742586044723,0.05803544,127.67,127.64,7.8378]
[1742586044917,5.41508618,127.66,127.64,11.43238772]
[1742586045119,0.05803544,127.67,127.66,7.837]
[1742586045324,5.47282702,127.67,127.66,7.837]
[1742586045936,0.05803544,127.67,127.66,7.837]
[1742586046326,5.46960432,127.67,127.66,7.837]
[1742586047425,0.05803544,127.67,127.66,7.837]
[1742586054123,3.544e-05,127.67,127.66,37.997]
[1742586054322,5.40308607,127.73,127.71,7.8334]
[1742586054528,5.40308607,127.72,127.68,17.89445106]
[1742586054729,5.40308607,127.71,127.68,17.89445106]
[1742586055039,14.174,127.74,127.71,7.8334]
[1742586055336,5.40239554,127.73,127.69,7.8348]
[1742586055524,35.56239554,127.72,127.71,0.05164248]
[1742586056541,5.40239554,127.72,127.71,0.05164248]
[1742586056731,5.40239554,127.72,127.71,7.88554248]
[1742586057930,5.40239554,127.72,127.71,0.05164248]
[1742586058239,5.40459906,127.72,127.71,0.05164248]
[1742586058535,5.40459906,127.72,127.71,7.88554248]
[1742586060540,5.40459906,127.72,127.71,0.05164248]
[1742586061140,13.23789906,127.72,127.71,0.05164248]
[1742586065043,7.8361,127.68,127.66,258.46]
[1742586065538,17.89445106,127.7,127.64,10.0137]
[1742586065842,5.40869072,127.69,127.63,48.03445106]
[1742586066139,7.89538092,127.67,127.65,7.8373]
[1742586066537,7.89538092,127.67,127.56,647.89445106]
[1742586066538,5.40845695,127.66,127.58,30.14]
[1742586066741,13.24615695,127.65,127.62,7.839]
[1742586066935,0.05188194,127.63,127.62,7.839]
[1742586067137,0.05188194,127.63,127.61,19.30051715]
[1742586067335,0.05188194,127.63,127.61,11.46051715]
[1742586067540,0.05188194,127.63,127.6,11.46051715]
[1742586067842,0.05188194,127.63,127.6,19.30081715]
[1742586068345,5.40658567,127.62,127.59,19.30151715]
[1742586068544,0.05188194,127.63,127.58,11.46051715]
[1742586068739,5.4065974,127.62,127.58,11.46051715]
[1742586068943,19.35149909,127.63,127.58,11.46051715]
[1742586069137,5.40671869,127.62,127.57,2.0224]
[1742586069331,7.89098194,127.63,127.57,32.1824]
[1742586069536,5.40413008,127.62,127.59,7.841]
[1742586069733,7.89098194,127.63,127.59,7.841]
[1742586069937,5.40413008,127.62,127.57,32.1824]
[1742586070149,0.05188194,127.63,127.57,32.1824]
[1742586070342,5.40454963,127.62,127.57,32.1824]
[1742586070643,30.14,127.62,127.56,17.91348613]
[1742586070843,5.4022785,127.61,127.56,48.05348613]
[1742586071042,0.05099227,127.6,127.56,48.05348613]
[1742586071433,0.05099227,127.6,127.58,17.91348613]
[1742586071839,9.227e-05,127.6,127.59,38.0013]
[1742586077047,35.5631713,127.66,127.65,7.8376]
[1742586077342,5.4031713,127.66,127.61,17.91348613]
[1742586077540,5.4031713,127.65,127.61,17.91348613]
[1742586077739,5.4031713,127.64,127.61,17.91348613]
[1742586077945,34.3069,127.67,127.61,17.91348613]
[1742586078240,0.05007987,127.64,127.61,17.97091797]
[1742586078446,5.40467186,127.63,127.62,7.8395]
[1742586079847,0.05007987,127.64,127.63,7.8389]
[1742586080046,5.45900484,127.64,127.63,7.8389]
[1742586080635,5.45900484,127.64,127.61,0.05743184]
[1742586080940,5.40892497,127.63,127.61,0.05743184]
[1742586081140,5.40892497,127.62,127.61,0.05743184]
[1742586081648,5.40892497,127.62,127.61,7.89703184]
[1742586081849,5.41170468,127.62,127.61,7.89703184]
[1742586088351,5.41170468,127.62,127.61,0.05743184]
[1742586088754,13.25120468,127.62,127.61,0.05743184]
[1742586091153,24.71811811,127.62,127.61,0.05743184]
[1742586091361,24.71936262,127.62,127.61,0.05743184]
[1742586093052,13.25244919,127.62,127.61,0.05743184]
[1742586093251,24.71763222,127.62,127.61,0.05743184]
[1742586093657,7.8406,127.61,127.58,7.8417]
[1742586093860,5.41121879,127.6,127.56,11.46691343]
[1742586094057,5.41121879,127.59,127.56,11.46691343]
[1742586094253,49.44731343,127.61,127.58,7.8419]
[1742586094458,5.4101632,127.6,127.58,7.8419]
[1742586094657,5.4101632,127.59,127.58,7.8419]
[1742586095059,5.4101632,127.59,127.58,19.30881343]
[1742586095460,5.4101632,127.59,127.58,49.44881343]
[1742586095657,0.0519819,127.6,127.59,7.8413]
[1742586095958,0.0519819,127.6,127.59,19.30821343]
[1742586100282,8.19e-05,127.6,127.59,19.30821343]
[1742586100477,2.0238,127.68,127.65,7.8373]
[1742586100677,2.0238,127.68,127.64,11.46691343]
[1742586101081,2.0238,127.68,127.66,7.8368]
[1742586101585,0.05755575,127.68,127.67,7.8364]
[1742586101795,0.05755575,127.68,127.67,19.30331343]
[1742586102090,5.575e-05,127.68,127.67,19.30331343]
[1742586103182,5.575e-05,127.68,127.66,30.19346332]
[1742586103183,5.575e-05,127.68,127.66,0.05346332]
[1742586104985,5.575e-05,127.68,127.66,11.52037675]
[1742586105585,5.575e-05,127.68,127.67,19.30331343]
[1742586106396,5.575e-05,127.68,127.67,49.42331343]
[1742586107693,5.35215836,127.68,127.67,49.42331343]
[1742586108397,5.35215836,127.68,127.67,30.12]
[1742586108597,5.35215836,127.68,127.67,41.58691343]
[1742586109093,5.35378659,127.68,127.67,30.12]
[1742586110096,5.35537477,127.68,127.67,30.12]
[1742586110793,5.35537477,127.68,127.67,37.9564]
[1742586113895,5.35227633,127.68,127.67,37.9564]
[1742586117703,5.34729001,127.68,127.67,37.9564]
[1742586122601,5.34418724,127.68,127.67,37.9564]
[1742586124204,34.2765,127.75,127.71,7.8339]
[1742586124409,5.34274248,127.74,127.69,17.89101834]
[1742586124711,5.34274248,127.73,127.69,17.89101834]
[1742586124905,5.34274248,127.72,127.69,17.89101834]
[1742586125105,5.34274248,127.71,127.67,50.02171834]
[1742586125308,5.34274248,127.7,127.69,7.88602488]
[1742586127309,5.34274248,127.7,127.69,0.05112488]
[1742586127812,13.17734248,127.7,127.69,0.05112488]
[1742586128608,7.36094248,127.7,127.63,17.89101834]
[1742586128809,5.34274248,127.69,127.63,47.99101834]
[1742586129003,5.34274248,127.68,127.64,7.8377]
[1742586129207,13.17944248,127.67,127.64,7.8377]
[1742586129401,5.34274248,127.66,127.64,7.8377]
[1742586129599,7.8367,127.67,127.64,7.8377]
[1742586129801,5.40261417,127.66,127.64,7.88847437]
[1742586129999,0.06007259,127.66,127.64,7.88847437]
[1742586130199,5.34298502,127.65,127.64,0.05077437]
[1742586131218,5.34298502,127.65,127.64,7.88897437]
[1742586131517,5.34298502,127.65,127.64,19.34611375]
[1742586131810,0.06007259,127.66,127.65,7.8376]
[1742586132116,0.06007259,127.66,127.65,19.29473938]
[1742586132310,51.53703938,127.72,127.68,7.8353]
[1742586133010,1.9759,127.74,127.7,11.45713938]
[1742586133212,1.9759,127.74,127.71,11.45713938]
[1742586133418,73.52682688,127.75,127.71,11.45713938]
[1742586133611,0.05111414,127.74,127.71,11.50742501]
[1742586133917,0.05111414,127.74,127.72,7.833]
[1742586134215,43.49794102,127.74,127.72,19.29013938]
[1742586135218,43.49794102,127.74,127.72,7.833]
[1742586137010,0.05111414,127.74,127.72,7.833]
[1742586138014,0.05111414,127.74,127.71,30.13028563]
[1742586138515,7.88361414,127.74,127.71,30.13028563]
[1742586139224,7.88361414,127.74,127.71,37.96418563]
[1742586139521,7.88361414,127.74,127.71,7.88418563]
[1742586139730,7.8328,127.73,127.71,0.05028563]
[1742586141128,7.8328,127.73,127.71,7.88418563]
[1742586141532,37.96351414,127.74,127.71,0.05028563]
[1742586142325,0.05111414,127.74,127.71,0.05028563]
[1742586142718,0.05111414,127.74,127.73,7.8327]
[1742586143226,0.05111414,127.74,127.71,0.05028563]
[1742586143419,0.05111414,127.74,127.72,7.8328]
[1742586143626,0.05111414,127.74,127.71,0.05028563]
[1742586143824,0.05111414,127.74,127.73,7.8327]
[1742586157241,0.05111414,127.74,127.73,19.27170231]
[1742586160544,0.05111414,127.74,127.73,7.8327]
[1742586162645,0.05111414,127.74,127.71,11.48928794]
[1742586162848,30.09111414,127.74,127.71,0.05028563]
[1742586163544,30.09111414,127.74,127.71,7.88398563]
[1742586163744,30.09111414,127.74,127.71,0.05028563]
[1742586164847,7.8333,127.72,127.71,0.05028563]
[1742586168252,7.8352,127.69,127.67,11.43900231]
[1742586168439,7.8352,127.69,127.66,11.43900231]
[1742586168839,7.8349,127.7,127.66,11.43900231]
[1742586169141,41.47900231,127.71,127.66,11.43900231]
[1742586169548,7.8356,127.69,127.67,0.05664284]
[1742586172547,7.8356,127.69,127.67,7.89304284]
[1742586178954,7.89252155,127.7,127.67,7.89304284]
[1742586179146,7.89252155,127.7,127.67,0.05664284]
[1742586179953,7.8352,127.69,127.67,7.89274284]
[1742586181557,7.89232155,127.7,127.68,7.8358]
[1742586185158,0.05762155,127.7,127.69,7.8352]
[1742586185353,10.86170672,127.75,127.69,11.43900231]
[1742586185544,10.86170672,127.75,127.74,7.8321]
[1742586185752,10.86170672,127.75,127.74,19.27110231]
[1742586186260,10.86170672,127.75,127.74,7.8321]
[1742586186456,10.86170672,127.75,127.73,11.43900231]
[1742586186653,7.8321,127.74,127.73,0.05106018]
[1742586187761,30.13260903,127.75,127.73,0.05106018]
[1742586187957,18.69360672,127.75,127.73,0.05106018]
[1742586188354,7.8319,127.75,127.73,0.05106018]
[1742586190154,7.8319,127.75,127.73,7.88356018]
[1742586190966,19.32981519,127.76,127.73,7.88356018]
[1742586191258,0.05961288,127.76,127.75,11.43900231]
[1742586191653,0.05961288,127.76,127.75,7.8315]
[1742586192058,0.05961288,127.76,127.75,19.27050231]
[1742586194966,0.05961288,127.76,127.73,11.49006249]
[1742586195169,0.05961288,127.76,127.73,0.05106018]
[1742586196064,0.05961288,127.76,127.74,11.43900231]
[1742586196673,0.05961288,127.76,127.74,19.27080231]
[1742586198670,7.89051288,127.76,127.74,19.27080231]
[1742586198874,0.05961288,127.76,127.73,0.05106018]
[1742586200671,11.49861519,127.76,127.73,0.05106018]
[1742586201066,30.0,127.75,127.73,0.05106018]
[1742586201267,7.8321,127.74,127.73,0.05106018]
[1742586202469,37.8317,127.75,127.73,0.05106018]
[1742586202866,30.0,127.75,127.73,7.88376018]
[1742586203071,30.0,127.75,127.73,0.05106018]
[1742586204267,30.0,127.75,127.73,7.88346018]
[1742586204780,37.8315,127.75,127.73,7.88346018]
[1742586205071,37.8315,127.75,127.73,0.05106018]
[1742586205470,30.0,127.75,127.73,7.88356018]
[1742586212380,37.8316,127.75,127.73,7.88356018]
[1742586214084,30.0,127.75,127.73,7.88356018]
[1742586216791,37.8316,127.75,127.73,7.88356018]
[1742586217088,37.8316,127.75,127.73,0.05106018]
[1742586217579,37.8316,127.75,127.73,7.88376018]
[1742586218380,30.0,127.75,127.74,7.8321]
[1742586219300,30.0,127.75,127.73,7.88346018]
[1742586219905,30.0,127.75,127.74,7.8321]
[1742586221503,37.8315,127.75,127.73,7.88356018]
[1742586222705,37.8315,127.75,127.74,7.8321]
[1742586222706,30.0,127.75,127.74,7.8321]
[1742586222905,30.0,127.75,127.73,0.05106018]
[1742586223406,37.8315,127.75,127.73,7.88356018]
[1742586224806,37.8315,127.75,127.73,0.05106018]
[1742586225408,37.8315,127.75,127.73,7.88376018]
[1742586227113,30.0,127.75,127.74,7.8321]
[1742586227314,0.05961288,127.76,127.74,11.43900231]
[1742586230117,7.89051288,127.76,127.74,19.27080231]
[1742586230615,0.05961288,127.76,127.74,11.43900231]
[1742586230915,0.05961288,127.76,127.75,7.8315]
[1742586231816,0.05961288,127.76,127.75,37.7915]
[1742586232111,0.05961288,127.76,127.75,49.23050231]
[1742586236010,4.1849,127.81,127.75,49.23050231]
[1742586236011,4.1849,127.81,127.75,41.39900231]
[1742586236209,4.1849,127.81,127.79,11.43900231]
[1742586236410,149.43877393,127.84,127.79,11.43900231]
[1742586236717,149.43877393,127.84,127.81,11.43900231]
[1742586237316,10.91722556,127.83,127.81,11.49151987]
[1742586237516,10.91722556,127.83,127.82,7.8272]
[1742586237917,0.05551884,127.83,127.82,7.8272]
[1742586239820,0.05551884,127.83,127.81,19.31901987]
[1742586240523,0.05551884,127.83,127.82,7.8272]
[1742586240923,0.05551884,127.83,127.81,11.49151987]
[1742586241123,0.05551884,127.83,127.81,0.05251756]
[1742586241925,0.05551884,127.83,127.81,7.88021756]
[1742586242119,0.05551884,127.83,127.81,11.49151987]
[1742586242624,0.05551884,127.83,127.82,7.8272]
[1742586249430,7.88211884,127.83,127.81,0.05251756]
[1742586249625,11.49452115,127.83,127.81,0.05251756]
[1742586250224,37.7472,127.82,127.81,0.05251756]
[1742586250425,41.35900231,127.82,127.77,11.43900231]
[1742586250733,7.8297,127.79,127.76,19.26960231]
[1742586251027,11.43900231,127.81,127.76,19.26960231]
[1742586251634,7.8299,127.78,127.77,0.05227645]
[1742586260539,19.26890231,127.78,127.77,0.05227645]
[1742586267343,7.8299,127.78,127.77,0.05227645]
[1742586267533,19.26890231,127.78,127.77,7.645e-05]
[1742586267737,19.25900231,127.78,127.69,271.84130231]
[1742586267938,11.43900231,127.74,127.69,13.52130231]
[1742586268137,29.92,127.73,127.69,13.52130231]
[1742586268938,7.8344,127.71,127.7,0.05416563]
[1742586271740,19.27340231,127.71,127.7,0.05416563]
[1742586283057,19.27340231,127.71,127.66,2.0629]
[1742586283058,7.8364,127.67,127.66,2.0629]
[1742586283255,7.8364,127.67,127.65,11.943]
[1742586283844,37.7561,127.68,127.66,7.8369]
[1742586284349,37.80847472,127.68,127.66,7.86485594]
[1742586286649,29.97237472,127.68,127.67,7.8364]
[1742586287255,29.97237472,127.68,127.66,7.86465594]
[1742586288053,29.97237472,127.68,127.67,19.27540231]
[1742586288352,0.05237472,127.68,127.67,21.44900231]
[1742586290155,0.05237472,127.68,127.67,10.01]
[1742586291561,0.05237472,127.68,127.67,21.44900231]
[1742586292550,0.05237472,127.68,127.67,19.27540231]
[1742586292851,0.05237472,127.68,127.67,7.8364]
[1742586294760,0.05237472,127.68,127.66,7.86465594]
[1742586294957,7.88817472,127.68,127.66,7.86465594]
[1742586295156,29.95237472,127.68,127.66,7.86465594]
[1742586295463,37.78817472,127.68,127.66,0.02795594]
[1742586296358,37.78817472,127.68,127.66,7.86475594]
[1742586299763,29.95237472,127.68,127.67,7.8364]
[1742586299963,29.95237472,127.68,127.66,0.02795594]
[1742586300362,7.8364,127.67,127.66,0.02795594]
[1742586300763,49.22757703,127.68,127.66,0.02795594]
[1742586301370,41.39137703,127.68,127.66,0.02795594]
[1742586301661,7.8364,127.67,127.66,0.02795594]
[1742586302066,29.95237472,127.68,127.67,7.8364]
[1742586308362,0.05237472,127.68,127.67,19.27540231]
[1742586308570,10.86170672,127.71,127.7,7.8346]
[1742586308960,10.86170672,127.71,127.69,7.8349]
[1742586309162,7.8349,127.7,127.67,15.45610231]
[1742586309372,11.43900231,127.7,127.65,11.43900231]
[1742586309565,29.9,127.69,127.67,7.8364]
[1742586309867,37.78707029,127.69,127.66,0.05589327]
[1742586310363,37.78707029,127.69,127.66,7.89249327]
[1742586310970,7.8359,127.68,127.66,7.89249327]
[1742586311470,11.43900231,127.68,127.66,0.05589327]
[1742586311673,7.8364,127.67,127.66,0.05589327]
[1742586312372,19.27510231,127.68,127.66,0.05589327]
[1742586312569,29.95147029,127.69,127.66,11.49489558]
[1742586313275,29.95147029,127.69,127.68,7.8358]
[1742586313481,29.95147029,127.69,127.68,19.27480231]
[1742586313865,33.94656428,127.69,127.68,7.8358]
[1742586315970,29.95147029,127.69,127.68,7.8358]
[1742586316466,44.42985106,127.69,127.67,11.43900231]
[1742586316673,14.47838077,127.68,127.66,11.49489558]
[1742586316867,14.47838077,127.67,127.66,11.49489558]
[1742586317270,14.47838077,127.67,127.66,7.89289327]
[1742586317469,29.95147029,127.69,127.66,0.05589327]
[1742586317671,29.95147029,127.69,127.68,7.8358]
[1742586317672,0.05147029,127.69,127.68,7.8358]
[1742586318679,0.05147029,127.69,127.68,19.27480231]
[1742586319474,0.05147029,127.69,127.66,4.12349327]
[1742586319475,29.88,127.72,127.71,7.8338]
[1742586320774,40.80009826,127.73,127.71,7.8338]
[1742586321576,10.92009826,127.73,127.71,7.8338]
[1742586321778,40.80009826,127.73,127.71,7.8338]
[1742586322277,29.93839154,127.73,127.71,7.8338]
[1742586323180,37.77139154,127.73,127.71,7.8338]
[1742586323578,41.37739385,127.73,127.7,0.04937974]
[1742586323779,11.43900231,127.72,127.7,0.04937974]
[1742586323969,19.27280231,127.72,127.7,0.04937974]
[1742586325473,37.6938,127.72,127.7,7.88387974]
[1742586328774,29.86,127.72,127.71,7.8339]
[1742586329180,7.89129154,127.73,127.71,7.8339]
[1742586329481,37.75129154,127.73,127.71,7.8339]
[1742586330278,37.75129154,127.73,127.7,7.88357974]
[1742586330675,37.75129154,127.73,127.7,0.04937974]
[1742586330982,37.75129154,127.73,127.71,7.8338]
[1742586331175,37.75129154,127.73,127.7,0.04937974]
[1742586331370,41.35739385,127.73,127.7,0.04937974]